fUSD/lending_fUSD_20240426
["ID","MTS","AMOUNT","RATE_DAILY","PERIOD"]
[323680505,1714162232380,-168.93,9.093e-05,2]
[323680506,1714162232390,-468.52,9.1e-05,2]
[323680507,1714162232398,-468.52,9.103e-05,2]
[323680508,1714162232408,-468.52,9.105e-05,2]
[323680509,1714162232417,-468.52,9.107e-05,2]
[323680510,1714162232426,-468.52,9.11e-05,2]
[323680511,1714162232435,-468.52,9.112e-05,2]
[323680512,1714162232443,-468.52,9.114e-05,2]
[323680513,1714162232453,-168.93,9.117e-05,2]
[323680514,1714162232463,-468.52,9.117e-05,2]
[323680515,1714162232475,-468.52,9.119e-05,2]
[323680516,1714162232484,-468.52,9.122e-05,2]
[323680517,1714162232494,-1482.17616553,9.123e-05,2]
[323680518,1714162232504,-468.52,9.124e-05,2]
[323680519,1714162232514,-468.52,9.126e-05,2]
[323680520,1714162232523,-468.52,9.129e-05,2]
[323680521,1714162232532,-468.52,9.131e-05,2]
[323680522,1714162232541,-468.52,9.133e-05,2]
[323680523,1714162232551,-468.52,9.136e-05,2]
[323680524,1714162232560,-468.52,9.138e-05,2]
[323680525,1714162232569,-468.52,9.141e-05,2]
[323680526,1714162232579,-168.93,9.141e-05,2]
[323680527,1714162232588,-468.52,9.143e-05,2]
[323680528,1714162232597,-468.52,9.145e-05,2]
[323680529,1714162232605,-168.93,9.165e-05,2]
[323680530,1714162232614,-175.72,9.243e-05,2]
[323680531,1714162232623,-241.5,9.347e-05,2]
[323680532,1714162232633,-711.26,9.398e-05,2]
[323680533,1714162232642,-197.21,9.627e-05,2]
[323680534,1714162232652,-499.99,9.67e-05,2]
[323680535,1714162232661,-358.44,9.67e-05,2]
[323680536,1714162232670,-150.99,9.67e-05,2]
[323680537,1714162232679,-168.07,9.776e-05,2]
[323680538,1714162232688,-400.0,9.821e-05,2]
[323680539,1714162232697,-2500.0,9.945e-05,2]
[323680540,1714162232707,-2500.0,9.945e-05,2]
[323680541,1714162232717,-3956.9278,9.973e-05,2]
[323680542,1714162232726,-787.42007613,0.0001,2]
[323680543,1714162232736,-3166.90562912,0.0001,2]
[323680544,1714162232745,-179.7000076,0.0001,2]
[323680545,1714162232755,-3923.10066131,0.00010006,2]
[323680546,1714162232768,-3314.15000005,0.00010006,2]
[323680547,1714162232779,-853.15156266,0.00010006,2]
[323680548,1714162232791,-741.8811006,0.00010006,2]
[323680549,1714162232803,-2285.30761871,0.00010006,2]
[323680571,1714162237976,-542.22711796,0.00010006,2]
[323680578,1714162238026,-11085.46911497,0.00010006,2]
[323680590,1714162238135,-255.42511305,0.00010006,2]
[323680592,1714162238146,-1289.66076782,0.00010006,2]
[323680594,1714162238157,-884.62694287,0.00010006,2]
[323680596,1714162238167,-447.07253793,0.0001033,2]
[323680598,1714162238176,-241.5,0.00010386,2]
[323680601,1714162238186,-374.2,0.00010388,2]
[323680603,1714162238196,-623.00243372,0.00010403,2]
[323680604,1714162238206,-711.26,0.00010442,2]
[323680606,1714162238215,-728.60026282,0.00010562,2]
[323680613,1714162238270,-1342.22573718,0.00010562,2]
[323680615,1714162238280,-1217.2934,0.00010562,2]
[323680617,1714162238289,-7135.5633,0.00010562,2]
[323680619,1714162238298,-660.7235,0.00010562,2]
[323680621,1714162238308,-1293.92148157,0.00010578,2]
[323680623,1714162238318,-3383.412,0.00010662,2]
[323680625,1714162238327,-2625.8418,0.00010662,2]
[323680626,1714162238337,-50363.39455626,0.00010662,2]
[323680628,1714162238349,-7717.25742839,0.00010662,2]
[323680630,1714162238369,-44935.03321535,0.00010662,2]
[323680633,1714162238378,-1241.0491,0.00010662,2]
[323680635,1714162238387,-312.1,0.00010662,2]
[323680637,1714162238396,-666.1619,0.00010662,2]
[323680639,1714162238406,-300.0,0.000107,3]
[323680642,1714162238415,-600.0,0.000108,3]
[323680645,1714162238424,-14756.5728799,0.00010845,2]
[323680647,1714162238434,-961.3567,0.00010856,2]
[323680650,1714162238443,-1911.68445069,0.00010858,2]
[323680652,1714162238452,-168.86780766,0.00010858,2]
[323680654,1714162238462,-170.11517314,0.00010858,2]
[323680656,1714162238471,-10000.0,0.00010858,2]
[323680658,1714162238480,-1000.0,0.00010858,2]
[323680660,1714162238489,-155.0,0.000109,2]
[323680662,1714162238498,-900.0,0.000109,3]
[323680664,1714162238507,-400.0,0.00010912,2]
[323680666,1714162238516,-376.71560002,0.00010954,2]
[323680668,1714162238525,-155.4084474,0.00010954,2]
[323680670,1714162238535,-185.07318544,0.00010954,2]
[323680672,1714162238544,-255.3668917,0.00010954,2]
[323680673,1714162238554,-481.52454952,0.00010954,2]
[323680676,1714162238563,-155.61699874,0.00010954,2]
[323680677,1714162238573,-183.10853222,0.00010954,2]
[323680679,1714162238582,-180.13296918,0.00010954,2]
[323680681,1714162238592,-967.75282594,0.00010954,2]
[323680683,1714162238602,-816.80429482,0.00010954,2]
[323680686,1714162238611,-21038.91229009,0.00010955,2]
[323680688,1714162238621,-161.35237626,0.00010955,2]
[323680690,1714162238630,-313.19457979,0.00010955,2]
[323680692,1714162238639,-1608.37449377,0.00010955,2]
[323680694,1714162238649,-454.6036014,0.00010955,2]
[323680696,1714162238658,-1126.20063412,0.00010955,2]
[323680698,1714162238667,-2358.804043,0.00010955,2]
[323680700,1714162238676,-2998.99544608,0.00010955,2]
[323680701,1714162238685,-155.0,0.00010955,2]
[323680703,1714162238694,-257.12442546,0.00010955,2]
[323680705,1714162238704,-2355.79540896,0.00010956,2]
[323680707,1714162238713,-217.78491516,0.00010956,2]
[323680709,1714162238722,-219.77053153,0.00010957,2]
[323680711,1714162238731,-412282.41458205,0.00010957,2]
[323680713,1714162238740,-865.0,0.00010958,2]
[323680714,1714162238749,-558.69566553,0.00010958,2]
[323680716,1714162238758,-500.0,0.00010958,2]
[323680718,1714162238767,-500.0,0.00010958,2]
[323680719,1714162238776,-444.46701666,0.00010958,2]
[323680720,1714162238785,-500.0,0.00010958,2]
[323680721,1714162238794,-500.0,0.00010958,2]
[323680722,1714162238803,-500.0,0.00010958,2]
[323680723,1714162238812,-500.0,0.00010958,2]
[323680724,1714162238822,-500.0,0.00010958,2]
[323680725,1714162238831,-500.0,0.00010958,2]
[323680726,1714162238841,-229.31355876,0.00010958,2]
[323680727,1714162238850,-500.0,0.00010958,2]
[323680728,1714162238861,-500.0,0.00010958,2]
[323680729,1714162238871,-500.0,0.00010958,2]
[323680730,1714162238880,-500.0,0.00010958,2]
[323680731,1714162238889,-500.0,0.00010958,2]
[323680732,1714162238899,-500.0,0.00010958,2]
[323680734,1714162238911,-500.0,0.00010958,2]
[323680735,1714162238920,-500.0,0.00010958,2]
[323680736,1714162238930,-500.0,0.00010958,2]
[323680737,1714162238940,-500.0,0.00010958,2]
[323680738,1714162238950,-500.0,0.00010958,2]
[323680739,1714162238961,-500.0,0.00010958,2]
[323680740,1714162238969,-500.0,0.00010958,2]
[323680741,1714162238979,-500.0,0.00010958,2]
[323680742,1714162238988,-500.0,0.00010958,2]
[323680743,1714162238997,-500.0,0.00010958,2]
[323680744,1714162239007,-500.0,0.00010958,2]
[323680745,1714162239016,-500.0,0.00010958,2]
[323680746,1714162239027,-500.0,0.00010958,2]
[323680747,1714162239036,-246.0560207,0.00010958,2]
[323680748,1714162239046,-567.6760498,0.00010958,2]
[323680749,1714162239055,-500.0,0.00010958,2]
[323680750,1714162239065,-500.0,0.00010958,2]
[323680751,1714162239074,-500.0,0.00010958,2]
[323680752,1714162239084,-500.0,0.00010958,2]
[323680753,1714162239093,-500.0,0.00010958,2]
[323680754,1714162239102,-284.24616713,0.00010958,2]
[323680755,1714162239112,-500.0,0.00010958,2]
[323680756,1714162239121,-500.0,0.00010958,2]
[323680757,1714162239130,-500.0,0.00010958,2]
[323680758,1714162239140,-500.0,0.00010958,2]
[323680759,1714162239149,-504.34777392,0.00010958,2]
[323680760,1714162239158,-500.0,0.00010958,2]
[323680761,1714162239167,-501.49258767,0.00010958,2]
[323680762,1714162239177,-500.0,0.00010958,2]
[323680763,1714162239186,-500.0,0.00010958,2]
[323680764,1714162239195,-500.0,0.00010958,2]
[323680765,1714162239204,-500.0,0.00010958,2]
[323680766,1714162239213,-500.0,0.00010958,2]
[323680767,1714162239222,-503.08403738,0.00010958,2]
[323680768,1714162239233,-500.89447735,0.00010958,2]
[323680769,1714162239242,-500.0,0.00010958,2]
[323680770,1714162239252,-500.0,0.00010958,2]
[323680771,1714162239260,-500.0,0.00010958,2]
[323680772,1714162239270,-500.0,0.00010958,2]
[323680773,1714162239280,-500.0,0.00010958,2]
[323680774,1714162239289,-500.0,0.00010958,2]
[323680775,1714162239299,-500.0,0.00010958,2]
[323680776,1714162239309,-500.0,0.00010958,2]
[323680777,1714162239318,-503.86426964,0.00010958,2]
[323680778,1714162239328,-500.0,0.00010958,2]
[323680779,1714162239338,-500.0,0.00010958,2]
[323680780,1714162239347,-380.39240618,0.00010958,2]
[323680781,1714162239356,-500.0,0.00010958,2]
[323680782,1714162239365,-500.0,0.00010958,2]
[323680783,1714162239374,-500.0,0.00010958,2]
[323680784,1714162239384,-500.0,0.00010958,2]
[323680785,1714162239393,-500.0,0.00010958,2]
[323680786,1714162239403,-500.0,0.00010958,2]
[323680787,1714162239412,-500.0,0.00010958,2]
[323680788,1714162239421,-500.0,0.00010958,2]
[323680789,1714162239431,-500.0,0.00010958,2]
[323680790,1714162239440,-500.0,0.00010958,2]
[323680791,1714162239451,-500.0,0.00010958,2]
[323680792,1714162239461,-501.5207378,0.00010958,2]
[323680793,1714162239470,-500.0,0.00010958,2]
[323680794,1714162239480,-500.0,0.00010958,2]
[323680795,1714162239489,-500.0,0.00010958,2]
[323680796,1714162239498,-500.0,0.00010958,2]
[323680797,1714162239508,-500.0,0.00010958,2]
[323680798,1714162239517,-576.2703296,0.00010958,2]
[323680799,1714162239527,-500.0,0.00010958,2]
[323680800,1714162239536,-500.0,0.00010958,2]
[323680801,1714162239545,-500.0,0.00010958,2]
[323680802,1714162239554,-502.61635844,0.00010958,2]
[323680803,1714162239563,-502.96441976,0.00010958,2]
[323680804,1714162239578,-500.0,0.00010958,2]
[323680805,1714162239590,-500.0,0.00010958,2]
[323680806,1714162239602,-607.5,0.00010958,2]
[323680807,1714162239614,-500.0,0.00010958,2]
[323680808,1714162239625,-500.0,0.00010958,2]
[323680809,1714162239636,-500.0,0.00010958,2]
[323680810,1714162239646,-500.0,0.00010958,2]
[323680811,1714162239656,-500.0,0.00010958,2]
[323680812,1714162239667,-500.0,0.00010958,2]
[323680814,1714162239678,-500.0,0.00010958,2]
[323680815,1714162239689,-500.0,0.00010958,2]
[323680816,1714162239700,-500.0,0.00010958,2]
[323680817,1714162239712,-500.0,0.00010958,2]
[323680818,1714162239723,-596.655813,0.00010958,2]
[323680819,1714162239734,-500.0,0.00010958,2]
[323680820,1714162239746,-500.0,0.00010958,2]
[323680821,1714162239756,-500.0,0.00010958,2]
[323680822,1714162239767,-163.16920512,0.00010958,2]
[323680823,1714162239779,-612.60867078,0.00010958,2]
[323680825,1714162239789,-500.0,0.00010958,2]
[323680827,1714162239799,-500.0,0.00010958,2]
[323680828,1714162239810,-500.0,0.00010958,2]
[323680829,1714162239822,-500.0,0.00010958,2]
[323680830,1714162239833,-500.0,0.00010958,2]
[323680831,1714162239845,-500.0,0.00010958,2]
[323680832,1714162239856,-324.481,0.00010958,2]
[323680833,1714162239867,-500.0,0.00010958,2]
[323680834,1714162239877,-500.0,0.00010958,2]
[323680835,1714162239888,-500.0,0.00010958,2]
[323680837,1714162239900,-500.0,0.00010958,2]
[323680838,1714162239911,-500.0,0.00010958,2]
[323680839,1714162239923,-500.0,0.00010958,2]
[323680840,1714162239933,-500.0,0.00010958,2]
[323680841,1714162239943,-500.0,0.00010958,2]
[323680843,1714162239953,-500.0,0.00010958,2]
[323680846,1714162239966,-500.0,0.00010958,2]
[323680848,1714162239976,-500.0,0.00010958,2]
[323680850,1714162239987,-500.0,0.00010958,2]
[323680852,1714162239998,-568.07765721,0.00010958,2]
[323680854,1714162240011,-500.0,0.00010958,2]
[323680857,1714162240022,-500.0,0.00010958,2]
[323680859,1714162240032,-515.77,0.00010958,2]
[323680861,1714162240043,-633.4249711,0.00010958,2]
[323680863,1714162240054,-500.0,0.00010958,2]
[323680865,1714162240065,-500.0,0.00010958,2]
[323680867,1714162240075,-500.0,0.00010958,2]
[323680868,1714162240087,-420.49,0.00010958,2]
[323680869,1714162240098,-500.0,0.00010958,2]
[323680870,1714162240109,-500.0,0.00010958,2]
[323680871,1714162240121,-459.14741871,0.00010958,2]
[323680872,1714162240133,-500.0,0.00010958,2]
[323680873,1714162240144,-500.0,0.00010958,2]
[323680874,1714162240156,-501.39591085,0.00010958,2]
[323680875,1714162240168,-679.19,0.00010958,2]
[323680876,1714162240180,-500.0,0.00010958,2]
[323680877,1714162240191,-500.0,0.00010958,2]
[323680878,1714162240203,-500.0,0.00010958,2]
[323680879,1714162240214,-500.0,0.00010958,2]
[323680880,1714162240224,-500.0,0.00010958,2]
[323680881,1714162240242,-500.0,0.00010958,2]
[323680882,1714162240254,-500.0,0.00010958,2]
[323680883,1714162240264,-681.85,0.00010958,2]
[323680884,1714162240275,-657.87,0.00010958,2]
[323680885,1714162240286,-500.0,0.00010958,2]
[323680886,1714162240297,-1062.81,0.00010958,2]
[323680887,1714162240309,-500.0,0.00010958,2]
[323680888,1714162240320,-500.0,0.00010958,2]
[323680889,1714162240330,-461.06518279,0.00010958,2]
[323680890,1714162240343,-500.0,0.00010958,2]
[323680891,1714162240354,-500.0,0.00010958,2]
[323680892,1714162240365,-500.0,0.00010958,2]
[323680893,1714162240375,-500.0,0.00010958,2]
[323680894,1714162240386,-506.30191452,0.00010958,2]
[323680895,1714162240396,-500.0,0.00010958,2]
[323680896,1714162240406,-500.0,0.00010958,2]
[323680897,1714162240417,-500.0,0.00010958,2]
[323680898,1714162240427,-500.0,0.00010958,2]
[323680899,1714162240437,-637.72,0.00010958,2]
[323680900,1714162240448,-500.0,0.00010958,2]
[323680901,1714162240460,-500.0,0.00010958,2]
[323680902,1714162240471,-500.0,0.00010958,2]
[323680903,1714162240482,-500.0,0.00010958,2]
[323680904,1714162240494,-500.0,0.00010958,2]
[323680905,1714162240504,-259.33,0.00010958,2]
[323680906,1714162240515,-500.0,0.00010958,2]
[323680907,1714162240525,-500.0,0.00010958,2]
[323680908,1714162240536,-500.0,0.00010958,2]
[323680909,1714162240550,-500.0,0.00010958,2]
[323680910,1714162240561,-500.0,0.00010958,2]
[323680911,1714162240572,-500.0,0.00010958,2]
[323680912,1714162240582,-182.93,0.00010958,2]
[323680913,1714162240593,-504.42039534,0.00010958,2]
[323680914,1714162240604,-500.0,0.00010958,2]
[323680915,1714162240615,-500.0,0.00010958,2]
[323680916,1714162240625,-500.0,0.00010958,2]
[323680917,1714162240637,-500.0,0.00010958,2]
[323680918,1714162240648,-500.0,0.00010958,2]
[323680919,1714162240659,-500.0,0.00010958,2]
[323680920,1714162240670,-1145.45,0.00010958,2]
[323680921,1714162240680,-500.0,0.00010958,2]
[323680922,1714162240691,-500.0,0.00010958,2]
[323680923,1714162240701,-500.0,0.00010958,2]
[323680924,1714162240713,-500.0,0.00010958,2]
[323680925,1714162240723,-500.0,0.00010958,2]
[323680926,1714162240734,-500.0,0.00010958,2]
[323680927,1714162240745,-556.03,0.00010958,2]
[323680928,1714162240756,-500.0,0.00010958,2]
[323680929,1714162240766,-500.0,0.00010958,2]
[323680930,1714162240776,-500.0,0.00010958,2]
[323680931,1714162240787,-500.0,0.00010958,2]
[323680932,1714162240797,-1468.22,0.00010958,2]
[323680933,1714162240807,-957.2,0.00010958,2]
[323680934,1714162240818,-500.0,0.00010958,2]
[323680935,1714162240828,-500.0,0.00010958,2]
[323680936,1714162240838,-500.0,0.00010958,2]
[323680937,1714162240849,-666.33,0.00010958,2]
[323680938,1714162240860,-500.0,0.00010958,2]
[323680939,1714162240870,-500.0,0.00010958,2]
[323680940,1714162240880,-558.73,0.00010958,2]
[323680941,1714162240891,-700.11,0.00010958,2]
[323680942,1714162240902,-500.0,0.00010958,2]
[323680943,1714162240913,-500.0,0.00010958,2]
[323680944,1714162240924,-500.0,0.00010958,2]
[323680945,1714162240934,-500.0,0.00010958,2]
[323680946,1714162240944,-500.0,0.00010958,2]
[323680947,1714162240958,-687.33,0.00010958,2]
[323680948,1714162240969,-500.0,0.00010958,2]
[323680949,1714162240979,-500.0,0.00010958,2]
[323680950,1714162240990,-500.0,0.00010958,2]
[323680951,1714162241001,-736.39,0.00010958,2]
[323680952,1714162241012,-500.0,0.00010958,2]
[323680953,1714162241023,-500.0,0.00010958,2]
[323680954,1714162241033,-500.0,0.00010958,2]
[323680955,1714162241044,-500.0,0.00010958,2]
[323680956,1714162241054,-500.0,0.00010958,2]
[323680957,1714162241065,-500.0,0.00010958,2]
[323680958,1714162241075,-500.0,0.00010958,2]
[323680959,1714162241086,-500.0,0.00010958,2]
[323680960,1714162241097,-500.0,0.00010958,2]
[323680961,1714162241108,-500.0,0.00010958,2]
[323680962,1714162241118,-498.27609352,0.00010958,2]
[323680963,1714162241129,-500.0,0.00010958,2]
[323680964,1714162241140,-942.17,0.00010958,2]
[323680965,1714162241150,-610.77,0.00010958,2]
[323680966,1714162241161,-500.0,0.00010958,2]
[323680967,1714162241181,-500.0,0.00010958,2]
[323680968,1714162241207,-500.0,0.00010958,2]
[323680969,1714162241230,-500.0,0.00010958,2]
[323680970,1714162241252,-500.0,0.00010958,2]
[323680971,1714162241276,-500.0,0.00010958,2]
[323680972,1714162241298,-500.0,0.00010958,2]
[323680973,1714162241321,-500.0,0.00010958,2]
[323680974,1714162241340,-500.0,0.00010958,2]
[323680975,1714162241351,-1465.26,0.00010958,2]
[323680976,1714162241361,-500.0,0.00010958,2]
[323680977,1714162241372,-610.84845624,0.00010958,2]
[323680978,1714162241383,-500.0,0.00010958,2]
[323680979,1714162241394,-500.0,0.00010958,2]
[323680980,1714162241405,-500.0,0.00010958,2]
[323680981,1714162241415,-500.0,0.00010958,2]
[323680982,1714162241426,-500.0,0.00010958,2]
[323680983,1714162241437,-500.0,0.00010958,2]
[323680984,1714162241447,-500.0,0.00010958,2]
[323680985,1714162241460,-500.0,0.00010958,2]
[323680986,1714162241470,-262.49,0.00010958,2]
[323680987,1714162241482,-1374.6,0.00010958,2]
[323680988,1714162241492,-500.0,0.00010958,2]
[323680989,1714162241502,-1309.46,0.00010958,2]
[323680990,1714162241512,-500.0,0.00010958,2]
[323680991,1714162241522,-500.0,0.00010958,2]
[323680992,1714162241533,-957.69,0.00010958,2]
[323680993,1714162241543,-500.0,0.00010958,2]
[323680994,1714162241552,-500.0,0.00010958,2]
[323680995,1714162241562,-500.0,0.00010958,2]
[323680996,1714162241573,-500.0,0.00010958,2]
[323680997,1714162241584,-500.0,0.00010958,2]
[323680998,1714162241594,-502.50981175,0.00010958,2]
[323680999,1714162241605,-500.0,0.00010958,2]
[323681000,1714162241615,-500.0,0.00010958,2]
[323681001,1714162241626,-554.85,0.00010958,2]
[323681002,1714162241636,-500.0,0.00010958,2]
[323681003,1714162241647,-500.0,0.00010958,2]
[323681004,1714162241657,-734.11,0.00010958,2]
[323681005,1714162241668,-1547.48,0.00010958,2]
[323681006,1714162241678,-248.77,0.00010958,2]
[323681007,1714162241689,-500.0,0.00010958,2]
[323681008,1714162241699,-912.57,0.00010958,2]
[323681009,1714162241713,-500.0,0.00010958,2]
[323681010,1714162241723,-500.0,0.00010958,2]
[323681011,1714162241733,-500.0,0.00010958,2]
[323681012,1714162241744,-500.0,0.00010958,2]
[323681013,1714162241755,-686.15,0.00010958,2]
[323681014,1714162241765,-500.0,0.00010958,2]
[323681015,1714162241776,-500.0,0.00010958,2]
[323681016,1714162241787,-500.0,0.00010958,2]
[323681017,1714162241798,-539.56884426,0.00010958,2]
[323681018,1714162241808,-500.0,0.00010958,2]
[323681019,1714162241819,-500.0,0.00010958,2]
[323681020,1714162241829,-500.0,0.00010958,2]
[323681021,1714162241840,-500.0,0.00010958,2]
[323681022,1714162241851,-500.0,0.00010958,2]
[323681023,1714162241862,-500.0,0.00010958,2]
[323681024,1714162241872,-238.63211786,0.00010958,2]
[323681025,1714162241883,-501.52548448,0.00010958,2]
[323681026,1714162241893,-500.0,0.00010958,2]
[323681027,1714162241904,-352.42,0.00010958,2]
[323681028,1714162241914,-614.4,0.00010958,2]
[323681029,1714162241924,-500.0,0.00010958,2]
[323681030,1714162241935,-500.0,0.00010958,2]
[323681031,1714162241945,-500.0,0.00010958,2]
[323681032,1714162241957,-500.0,0.00010958,2]
[323681033,1714162241967,-502.82101681,0.00010958,2]
[323681034,1714162241977,-631.5,0.00010958,2]
[323681035,1714162241989,-500.0,0.00010958,2]
[323681036,1714162241999,-500.0,0.00010958,2]
[323681037,1714162242010,-500.0,0.00010958,2]
[323681038,1714162242020,-500.0,0.00010958,2]
[323681039,1714162242030,-500.0,0.00010958,2]
[323681040,1714162242041,-500.0,0.00010958,2]
[323681041,1714162242051,-500.0,0.00010958,2]
[323681042,1714162242062,-500.0,0.00010958,2]
[323681043,1714162242073,-500.0,0.00010958,2]
[323681044,1714162242084,-579.13,0.00010958,2]
[323681045,1714162242094,-500.0,0.00010958,2]
[323681046,1714162242105,-500.0,0.00010958,2]
[323681047,1714162242116,-500.0,0.00010958,2]
[323681048,1714162242126,-500.0,0.00010958,2]
[323681049,1714162242136,-500.0,0.00010958,2]
[323681050,1714162242147,-500.0,0.00010958,2]
[323681051,1714162242158,-467.28500276,0.00010958,2]
[323681052,1714162242168,-500.0,0.00010958,2]
[323681053,1714162242178,-500.0,0.00010958,2]
[323681054,1714162242188,-500.0,0.00010958,2]
[323681055,1714162242198,-1012.05,0.00010958,2]
[323681056,1714162242209,-500.0,0.00010958,2]
[323681057,1714162242219,-500.0,0.00010958,2]
[323681058,1714162242230,-500.0,0.00010958,2]
[323681059,1714162242242,-719.54,0.00010958,2]
[323681060,1714162242255,-500.0,0.00010958,2]
[323681061,1714162242265,-500.0,0.00010958,2]
[323681062,1714162242276,-500.0,0.00010958,2]
[323681063,1714162242287,-500.0,0.00010958,2]
[323681064,1714162242298,-819.46,0.00010958,2]
[323681065,1714162242310,-529.2,0.00010958,2]
[323681066,1714162242321,-500.0,0.00010958,2]
[323681067,1714162242331,-500.0,0.00010958,2]
[323681068,1714162242342,-500.0,0.00010958,2]
[323681069,1714162242352,-500.0,0.00010958,2]
[323681070,1714162242362,-500.0,0.00010958,2]
[323681071,1714162242372,-334.53,0.00010958,2]
[323681072,1714162242382,-500.0,0.00010958,2]
[323681073,1714162242392,-500.0,0.00010958,2]
[323681074,1714162242403,-500.0,0.00010958,2]
[323681075,1714162242414,-630.1,0.00010958,2]
[323681076,1714162242424,-346.42,0.00010958,2]
[323681077,1714162242435,-500.0,0.00010958,2]
[323681078,1714162242445,-531.74,0.00010958,2]
[323681079,1714162242456,-500.0,0.00010958,2]
[323681080,1714162242467,-500.0,0.00010958,2]
[323681081,1714162242478,-608.9539872,0.00010958,2]
[323681082,1714162242489,-500.0,0.00010958,2]
[323681083,1714162242500,-500.0,0.00010958,2]
[323681084,1714162242511,-500.0,0.00010958,2]
[323681085,1714162242522,-500.0,0.00010958,2]
[323681086,1714162242534,-500.0,0.00010958,2]
[323681087,1714162242545,-500.0,0.00010958,2]
[323681088,1714162242555,-500.0,0.00010958,2]
[323681089,1714162242566,-500.0,0.00010958,2]
[323681090,1714162242576,-500.0,0.00010958,2]
[323681091,1714162242587,-500.0,0.00010958,2]
[323681092,1714162242597,-500.0,0.00010958,2]
[323681093,1714162242608,-500.0,0.00010958,2]
[323681095,1714162242619,-500.0,0.00010958,2]
[323681096,1714162242629,-500.0,0.00010958,2]
[323681097,1714162242640,-584.8,0.00010958,2]
[323681098,1714162242650,-500.0,0.00010958,2]
[323681099,1714162242660,-500.0,0.00010958,2]
[323681100,1714162242670,-500.0,0.00010958,2]
[323681101,1714162242680,-1789.42,0.00010958,2]
[323681102,1714162242690,-500.0,0.00010958,2]
[323681103,1714162242699,-500.0,0.00010958,2]
[323681104,1714162242710,-500.0,0.00010958,2]
[323681106,1714162242720,-500.0,0.00010958,2]
[323681108,1714162242730,-590.27,0.00010958,2]
[323681110,1714162242739,-500.0,0.00010958,2]
[323681112,1714162242749,-500.0,0.00010958,2]
[323681114,1714162242759,-500.0,0.00010958,2]
[323681116,1714162242770,-502.05778128,0.00010958,2]
[323681119,1714162242779,-681.35,0.00010958,2]
[323681122,1714162242790,-974.55,0.00010958,2]
[323681125,1714162242799,-500.0,0.00010958,2]
[323681130,1714162242809,-500.0,0.00010958,2]
[323681132,1714162242819,-640.61,0.00010958,2]
[323681136,1714162242830,-500.0,0.00010958,2]
[323681140,1714162242840,-500.0,0.00010958,2]
[323681150,1714162243228,-500.0,0.00010958,2]
[323681151,1714162243257,-500.0,0.00010958,2]
[323681152,1714162243280,-500.0,0.00010958,2]
[323681153,1714162243290,-500.0,0.00010958,2]
[323681154,1714162243299,-500.0,0.00010958,2]
[323681155,1714162243308,-500.0,0.00010958,2]
[323681156,1714162243317,-1421.44,0.00010958,2]
[323681157,1714162243326,-500.0,0.00010958,2]
[323681158,1714162243335,-500.0,0.00010958,2]
[323681159,1714162243345,-500.0,0.00010958,2]
[323681160,1714162243354,-500.0,0.00010958,2]
[323681161,1714162243363,-560.01,0.00010958,2]